bitfinex/quotes_ETHUSD_20250913
["timestamp","ask_amount","ask_price","bid_price","bid_amount"]
[1757729945656,0.002,4699.0,4698.9,39.17207589]
[1757729945857,0.002,4699.0,4698.9,39.42147589]
[1757729949686,0.002,4699.0,4698.9,39.64409191]
[1757729951148,0.4723,4700.1,4698.9,39.64409191]
[1757729951149,0.002,4701.4,4698.9,39.39469191]
[1757729951358,0.002,4701.4,4700.4,0.792]
[1757729951556,0.002,4701.4,4700.8,1.9031963]
[1757729951800,0.002,4701.4,4701.3,0.3112]
[1757729951974,0.002,4701.4,4701.3,37.19313634]
[1757729952160,0.002,4701.4,4701.3,38.71373634]
[1757729952362,0.002,4702.3,4701.9,1.0]
[1757729952562,0.002,4702.3,4701.9,10.51377531]
[1757729952758,0.002,4702.3,4701.9,11.53230732]
[1757729952985,0.002,4702.3,4701.9,12.42430732]
[1757729953186,0.002,4702.3,4701.9,42.42430732]
[1757729953596,0.002,4702.3,4701.9,42.42630732]
[1757729954466,0.002,4702.3,4702.2,1.792]
[1757729954665,0.002,4702.3,4702.2,39.0415375]
[1757729954861,0.002,4702.3,4702.2,40.06007086]
[1757729955113,0.002,4702.3,4702.2,39.06007086]
[1757729955280,0.002,4702.3,4702.2,40.48564065]
[1757729955704,0.002,4702.3,4702.2,46.60564065]
[1757729956000,0.062,4702.8,4702.5,1.792]
[1757729956203,0.062,4702.8,4702.5,44.57410593]
[1757729956404,0.062,4702.8,4702.6,3.792]
[1757729956608,0.062,4702.8,4702.7,7.41826438]
[1757729956900,0.062,4702.8,4702.7,35.87814065]
[1757729957110,0.062,4702.8,4702.7,39.48314065]
[1757729957707,0.062,4702.8,4702.7,39.48414065]
[1757729958377,0.062,4702.8,4702.7,35.87814065]
[1757729958601,0.062,4702.8,4702.7,39.48314065]
[1757729959397,0.062,4702.8,4702.7,9.48314065]
[1757729959798,0.062,4702.8,4702.7,39.48314065]
[1757729959997,0.002,4703.1,4703.0,1.792]
[1757729960210,0.002,4703.1,4703.0,37.47884065]
[1757729960370,0.002,4703.1,4703.0,42.11414065]
[1757729961313,0.002,4703.1,4703.0,42.30469763]
[1757729961996,0.002,4703.1,4703.0,42.00676129]
[1757729964403,0.002,4703.1,4703.0,40.94182677]
[1757729964774,0.002,4703.1,4703.0,41.63712677]
[1757729965402,0.002,4703.1,4703.0,38.03612677]
[1757729965597,0.002,4703.1,4703.0,41.19022677]
[1757729966221,0.002,4703.1,4703.0,34.91782677]
[1757729966372,0.2944,4703.1,4703.0,38.31495698]
[1757729966580,0.002,4703.1,4703.0,39.31495698]
[1757729966815,0.002,4703.1,4703.0,40.40865698]
[1757729968499,0.002,4703.1,4703.0,10.40865698]
[1757729968688,0.002,4703.1,4703.0,9.40865698]
[1757729968888,0.002,4703.1,4703.0,10.40865698]
[1757729969510,0.002,4703.1,4703.0,40.40865698]
[1757729970082,0.2944,4703.1,4703.0,39.4392915]
[1757729970335,0.002,4703.1,4703.0,36.7409915]
[1757729970487,0.002,4703.1,4703.0,39.7409915]
[1757729970825,0.002,4703.1,4703.0,40.03890694]
[1757729972201,0.002,4703.1,4703.0,39.95394996]
[1757729976449,0.002,4703.1,4703.0,40.05954996]
[1757729978525,0.002,4703.1,4703.0,39.95394996]
[1757729978915,0.002,4703.1,4703.0,40.64924996]
[1757729979306,0.002,4703.1,4703.0,40.73421002]
[1757729982191,0.002,4703.1,4703.0,41.00427988]
[1757729983282,0.002,4703.3,4703.2,1.792]
[1757729983484,0.002,4703.3,4703.2,38.96924741]
[1757729983649,0.002,4703.3,4703.2,39.58201982]
[1757729983853,0.002,4703.3,4703.2,9.83141982]
[1757729984090,0.002,4703.3,4703.2,39.91637301]
[1757729984581,0.002,4703.3,4703.2,36.29137301]
[1757729984773,0.002,4703.3,4703.2,39.87837301]
[1757729985287,0.002,4703.3,4703.2,41.78156931]
[1757729986079,0.002,4703.3,4703.2,39.87837301]
[1757729986248,0.002,4703.3,4703.2,41.78380893]
[1757729987185,0.002,4703.3,4703.2,41.78363967]
[1757729987388,0.002,4703.3,4703.2,39.87837301]
[1757729987570,0.002,4703.3,4703.2,41.78349764]
[1757729987971,0.002,4703.3,4703.2,11.78349764]
[1757729988172,0.002,4703.3,4703.2,41.78350937]
[1757729988363,0.002,4703.3,4703.2,39.87837301]
[1757729988564,0.002,4703.3,4703.2,39.98397301]
[1757729990092,0.002,4703.3,4703.2,9.98397301]
[1757729990491,0.002,4703.3,4703.2,39.98397301]
[1757729990691,0.3021,4703.3,4703.2,39.46487301]
[1757729990865,1.769,4703.3,4703.2,36.72568683]
[1757729991071,1.769,4703.3,4703.2,8.07146863]
[1757729991268,1.769,4703.3,4703.2,0.48846863]
[1757729991469,1.769,4703.3,4703.2,38.00777755]
[1757729991667,1.769,4703.3,4703.2,37.98651544]
[1757729993072,1.769,4703.3,4703.2,38.77851544]
[1757729994203,1.769,4703.3,4703.2,1.63]
[1757729994371,1.9461,4703.3,4702.3,0.001]
[1757729994696,1.9461,4703.3,4702.4,21.762109]
[1757729994873,1.4669,4703.2,4702.4,21.762109]
[1757729995070,0.3001,4702.5,4702.4,21.762109]
[1757729995286,1.767,4702.5,4702.4,23.392109]
[1757729995693,1.767,4702.5,4702.4,26.990109]
[1757729996117,1.767,4702.5,4702.4,29.989109]
[1757729997424,1.767,4702.5,4702.4,30.24386482]
[1757729999128,1.767,4702.5,4702.4,29.989109]
[1757730001491,1.767,4702.5,4702.4,29.987109]
[1757730002114,1.767,4702.5,4702.4,26.392109]
[1757730002319,1.3323,4702.5,4702.4,29.986109]
[1757730002494,0.3001,4702.5,4702.4,30.24086482]
[1757730004109,0.002,4703.3,4702.5,3.0]
[1757730004382,0.002,4703.3,4703.2,0.8976]
[1757730004584,0.002,4703.3,4703.2,29.553309]
[1757730004788,0.002,4703.3,4703.2,31.34676482]
[1757730005278,0.002,4703.3,4703.2,31.4317265]
[1757730006050,0.002,4703.3,4703.2,33.33661018]
[1757730006546,0.002,4703.3,4703.2,29.7296733]
[1757730006743,0.002,4703.3,4703.2,33.3276733]
[1757730006984,0.002,4703.3,4703.2,29.7296733]
[1757730007151,0.002,4703.3,4703.2,33.3276733]
[1757730007344,0.002,4703.3,4703.2,31.4307265]
[1757730007682,0.002,4703.3,4703.2,9.89495822]
[1757730008038,0.002,4703.6,4703.3,4.27309654]
[1757730008242,0.002,4703.6,4703.5,3.0]
[1757730008473,0.002,4703.6,4703.5,25.41706482]
[1757730008684,0.002,4703.6,4703.5,30.24476482]
[1757730008854,0.002,4703.6,4703.5,31.34476482]
[1757730009570,0.002,4703.6,4703.5,34.23214235]
[1757730009944,0.002,4703.6,4703.5,30.63514235]
[1757730010155,0.002,4703.6,4703.5,34.00580163]
[1757730010583,0.002,4703.6,4703.5,34.00380163]
[1757730011348,0.002,4703.6,4703.5,28.87010163]
[1757730011565,0.002,4703.6,4703.5,32.46510163]
[1757730011770,0.002,4703.6,4703.5,32.55005429]
[1757730012666,0.3021,4703.6,4703.5,25.20741748]
[1757730012866,1.3343,4703.6,4703.5,23.76407883]
[1757730013070,1.769,4703.6,4703.5,25.461709]
[1757730013272,1.769,4703.6,4703.5,21.762109]
[1757730013472,1.769,4703.6,4703.5,25.356109]
[1757730013966,1.769,4703.6,4703.5,21.762109]
[1757730014167,1.769,4703.6,4703.5,28.356109]
[1757730014391,1.769,4703.6,4703.5,25.356109]
[1757730014598,0.3021,4703.6,4703.5,25.61086482]
[1757730014784,0.3021,4703.6,4703.5,29.67610554]
[1757730014785,0.002,4703.6,4703.5,29.67610554]
[1757730014996,0.3149,4703.6,4703.5,25.12246482]
[1757730015196,0.3149,4703.6,4703.5,28.71646482]
[1757730016083,0.002,4703.6,4703.5,28.71646482]
[1757730016386,0.002,4703.6,4703.5,29.03226482]
[1757730016779,0.002,4703.6,4703.5,4.14125582]
[1757730017110,0.002,4703.6,4703.5,29.03126482]
[1757730017313,0.002,4703.6,4703.5,30.14516482]
[1757730017483,0.002,4703.6,4703.5,31.52300554]
[1757730017901,0.002,4703.6,4703.5,31.60795802]
[1757730018405,0.002,4703.6,4703.5,31.3816173]
[1757730019802,0.002,4703.6,4703.5,31.60795802]
[1757730020004,0.002,4703.6,4703.5,34.26899483]
[1757730021047,0.002,4703.6,4703.5,30.44965411]
[1757730021197,0.002,4703.6,4703.5,32.46565411]
[1757730021548,0.002,4703.6,4703.5,30.2697173]
[1757730021738,0.002,4703.6,4703.5,30.9185173]
[1757730021900,0.002,4703.6,4703.5,31.60995802]
[1757730022243,0.002,4703.6,4703.5,26.2096173]
[1757730022535,0.002,4703.6,4703.5,29.8056173]
[1757730022760,0.002,4703.6,4703.5,25.4176173]
[1757730023044,0.002,4703.6,4703.5,25.1018173]
[1757730023335,0.002,4703.6,4703.5,28.6978173]
[1757730024129,0.002,4703.6,4703.5,28.9848173]
[1757730024333,0.002,4703.6,4703.5,26.5040173]
[1757730024539,0.002,4703.6,4703.5,30.77965802]
[1757730024709,0.002,4703.6,4703.5,31.57165802]
[1757730025211,0.002,4703.6,4703.5,31.79422788]
[1757730026138,0.00054542,4703.6,4703.5,31.56788716]
[1757730026917,0.00054542,4703.6,4703.5,9.80577816]
[1757730027122,0.00054542,4703.6,4703.5,31.56788716]
[1757730027646,0.00054542,4703.6,4703.5,31.67348716]
[1757730028506,0.00054542,4703.6,4703.5,31.22418716]
[1757730028706,0.00054542,4703.6,4703.5,31.67748716]
[1757730028924,0.00054542,4703.6,4703.5,31.90382788]
[1757730029759,0.00054542,4703.6,4703.5,31.90282788]
[1757730030652,0.00054542,4703.6,4703.5,31.67648716]
[1757730031614,0.00054542,4703.6,4703.5,25.74466148]
[1757730031952,0.00054542,4703.6,4703.5,29.34166148]
[1757730032117,0.00054542,4703.6,4703.5,29.62866148]
[1757730033148,0.30724542,4703.6,4703.5,29.34066148]
[1757730033349,0.30724542,4703.6,4703.5,30.83766148]
[1757730033556,0.00054542,4703.6,4703.5,36.0906173]
[1757730033729,0.00054542,4703.6,4703.5,36.99282788]
[1757730034048,0.00178517,4704.3,4703.6,3.792]
[1757730034282,0.00178517,4704.3,4703.8,3.792]
[1757730034497,0.00178517,4704.3,4704.0,3.792]
[1757730034701,0.00178517,4704.3,4704.2,3.0]
[1757730034849,0.00178517,4704.3,4704.2,24.762109]
[1757730035283,0.00178517,4704.3,4704.2,24.8470575]
[1757730035443,0.00178517,4704.3,4704.2,25.5261449]
[1757730035845,0.00178517,4704.3,4704.2,26.6051449]
[1757730036045,0.00178517,4704.3,4704.2,27.0584449]
[1757730036746,0.00178517,4704.3,4704.2,27.16585788]
[1757730037590,0.00178517,4704.3,4704.2,26.71255788]
[1757730038982,0.00178517,4704.3,4704.2,26.42555788]
[1757730039488,0.30848517,4704.3,4704.2,26.42555788]
[1757730040994,0.30848517,4704.3,4704.2,30.01855788]
[1757730041445,0.00178517,4704.3,4704.2,30.01855788]
[1757730041986,0.00103255,4704.6,4704.3,0.792]
[1757730042186,0.00103255,4704.6,4704.5,3.0]
[1757730042390,0.00103255,4704.6,4704.5,24.762109]
[1757730042754,1.95313255,4704.6,4704.5,28.06451758]
[1757730042953,1.95313255,4704.6,4704.5,31.65651758]
[1757730043280,1.95313255,4704.6,4704.5,28.99118761]
[1757730044183,1.95313255,4704.6,4704.5,29.09578761]
[1757730044379,1.95313255,4704.6,4704.5,31.76111758]
[1757730045180,1.95313255,4704.6,4704.5,28.17011758]
[1757730045561,1.95313255,4704.6,4704.5,9.99800858]
[1757730045755,1.95313255,4704.6,4704.5,31.76011758]
[1757730046496,1.51773255,4704.6,4704.5,31.76011758]
[1757730046992,0.30773255,4704.6,4704.5,32.0148734]
[1757730047467,0.30773255,4704.6,4704.5,29.34954343]
[1757730049317,0.30773255,4704.6,4704.5,34.44254343]
[1757730049944,1.92103255,4704.6,4704.5,34.43954343]
[1757730050092,1.92103255,4704.6,4704.5,37.1092487]
[1757730050725,1.92103255,4704.6,4704.5,33.5222487]
[1757730051043,1.92103255,4704.6,4704.5,37.1082487]
[1757730051245,1.92103255,4704.6,4704.5,34.43854343]
[1757730054133,1.92103255,4704.6,4704.5,34.33294343]
[1757730057138,1.92103255,4704.6,4704.5,30.74794343]
[1757730057434,1.92103255,4704.6,4704.5,34.33094343]
[1757730057999,0.30773255,4704.6,4704.5,34.33094343]
[1757730058603,0.00103255,4704.6,4704.5,34.33094343]
[1757730058906,0.00103255,4704.6,4704.5,12.85633443]
[1757730059237,0.00103255,4704.6,4704.5,34.61744343]
[1757730059438,0.00103255,4704.6,4704.5,36.50858415]
[1757730059638,0.00023255,4704.6,4704.5,36.50858415]
[1757730059943,0.00023255,4704.6,4704.5,14.74647515]
[1757730060114,0.00023255,4704.6,4704.5,36.50858415]
[1757730060319,0.00023255,4704.6,4704.5,36.28224343]
[1757730060936,0.00023255,4704.6,4704.5,14.52013443]
[1757730061124,0.00023255,4704.6,4704.5,36.28224343]
[1757730062663,0.00023255,4704.6,4704.5,34.72304343]
[1757730063053,0.00023255,4704.6,4704.5,37.1056584]
[1757730064444,0.00023255,4704.6,4704.5,37.3931584]
[1757730064763,0.00023255,4704.6,4704.5,34.72304343]
[1757730065533,0.00023255,4704.6,4704.5,37.39328059]
[1757730065946,0.00023255,4704.6,4704.5,34.72304343]
[1757730066378,0.00023255,4704.6,4704.5,34.46828761]
[1757730066875,0.002,4705.1,4704.6,1.82129952]
[1757730067075,0.002,4705.1,4704.9,0.792]
[1757730067387,0.002,4705.1,4705.0,29.86851958]
[1757730067535,0.00163444,4705.6,4705.1,3.792]
[1757730067735,0.00163444,4705.6,4705.3,3.792]
[1757730067962,0.00163444,4705.6,4705.5,3.0]
[1757730068185,0.00163444,4705.6,4705.5,26.10474367]
[1757730068383,0.00163444,4705.6,4705.5,27.74886945]
[1757730069082,0.00163444,4705.6,4705.5,5.98676045]
[1757730069284,0.30343444,4705.6,4705.5,28.68816945]
[1757730069470,0.30343444,4705.6,4705.5,31.35416677]
[1757730069992,0.00163444,4705.6,4705.5,31.64161605]
[1757730070194,0.00163444,4705.6,4705.5,32.10191605]
[1757730070714,0.00163444,4705.6,4705.5,27.77611605]
[1757730070715,0.30343444,4705.6,4705.5,27.77611605]
[1757730070916,0.30343444,4705.6,4705.5,31.35311605]
[1757730071214,0.30343444,4705.6,4705.5,25.11016945]
[1757730071396,1.45743444,4705.6,4705.5,28.68716945]
[1757730071699,1.91673444,4705.6,4705.5,28.68716945]
[1757730071883,1.45743444,4705.6,4705.5,28.68716945]
[1757730072085,0.30343444,4705.6,4705.5,28.68716945]
[1757730073765,1.45743444,4705.6,4705.5,28.68716945]
[1757730073965,1.91673444,4705.6,4705.5,28.68716945]
[1757730075006,1.91673444,4705.6,4705.5,24.01322389]
[1757730075304,1.91673444,4705.6,4705.5,25.337109]
[1757730075880,1.91673444,4705.6,4705.5,28.337109]
[1757730076222,1.91673444,4705.6,4705.5,3.575]
[1757730076381,1.91673444,4705.6,4705.5,25.337109]
[1757730076576,1.91673444,4705.6,4705.5,28.337109]
[1757730077693,0.30343444,4705.6,4705.5,28.337109]
[1757730077992,0.00163444,4705.6,4705.5,32.60373883]
[1757730078206,0.00163444,4705.6,4705.5,31.10971883]
[1757730080485,0.00163444,4705.6,4705.5,31.90171883]
[1757730080703,0.00163444,4705.6,4705.5,34.56766543]
[1757730082466,0.00163444,4705.6,4705.5,34.34132471]
[1757730083540,0.00044363,4705.6,4705.5,34.56389457]
[1757730083714,0.00044363,4705.6,4705.5,31.89794797]
[1757730084540,0.00044363,4705.6,4705.5,32.91794449]
[1757730085313,0.00044363,4705.6,4705.5,11.15583549]
[1757730085526,0.00044363,4705.6,4705.5,32.91794449]
[1757730085910,0.002,4706.1,4705.6,3.792]
[1757730086121,0.002,4706.1,4706.0,6.45244024]
[1757730086321,0.002,4706.1,4706.0,10.70357491]
[1757730086551,0.002,4706.1,4706.0,12.26986373]
[1757730086752,0.002,4706.1,4706.0,7.12816373]
[1757730087046,0.002,4706.1,4706.0,32.46527273]
[1757730087249,0.002,4706.1,4706.0,32.55018715]
[1757730088050,0.002,4706.1,4706.0,26.31515809]
[1757730088251,0.3157,4706.1,4706.0,28.52662342]
[1757730089350,0.3157,4706.1,4706.0,28.52562342]
[1757730090035,0.3157,4706.1,4706.0,24.95262342]
[1757730090236,1.876,4706.1,4706.0,28.52562342]
[1757730090978,1.876,4706.1,4706.0,24.95262342]
[1757730091133,0.3157,4706.1,4706.0,30.42610293]
[1757730091334,0.3157,4706.1,4706.0,30.68943075]
[1757730092235,0.3157,4706.1,4706.0,28.78875809]
[1757730092434,0.3157,4706.1,4706.0,7.02664909]
[1757730092636,0.3157,4706.1,4706.0,28.78875809]
[1757730094252,0.002,4706.1,4706.0,28.78875809]
[1757730094439,0.002,4706.1,4706.0,29.09615809]
[1757730094638,0.002,4706.1,4706.0,30.66285809]
[1757730095176,0.002,4706.1,4706.0,28.78875809]
[1757730095384,0.002,4706.1,4706.0,29.09615809]
[1757730096080,0.002,4706.1,4706.0,31.45485809]
[1757730096834,0.002,4706.1,4706.0,29.88815809]
[1757730097280,0.002,4706.1,4706.0,29.09315809]
[1757730097446,0.002,4706.1,4706.0,30.65985809]
[1757730098188,0.002,4706.1,4706.0,30.88586317]
[1757730099092,0.002,4706.1,4706.0,30.65985809]
[1757730099947,0.002,4706.1,4706.0,29.09315809]
[1757730100777,0.002,4706.1,4706.0,28.78575809]
[1757730100980,0.3157,4706.1,4706.0,28.78375809]
[1757730101695,0.3157,4706.1,4706.0,28.78275809]
[1757730101997,0.002,4706.1,4706.0,29.09015809]
[1757730102559,0.002,4706.1,4706.0,30.19195809]
[1757730102757,0.002,4706.1,4706.0,30.65685809]
[1757730102965,0.002,4706.1,4706.0,33.31688715]
[1757730103790,0.002,4706.1,4706.0,11.55477815]
[1757730104282,0.002,4706.1,4706.0,33.31688715]
[1757730104484,0.002,4706.1,4706.0,33.31588715]
[1757730104642,0.002,4706.1,4706.0,27.87578715]
[1757730104844,0.3157,4706.1,4706.0,28.78175809]
[1757730106092,0.3157,4706.1,4706.0,25.21575809]
[1757730106287,0.3157,4706.1,4706.0,28.78075809]
[1757730106602,0.002,4706.1,4706.0,31.44078715]
[1757730107185,0.00054291,4706.1,4706.0,31.44078715]
[1757730107508,0.00054291,4706.1,4706.0,28.78075809]
[1757730108714,0.00054291,4706.1,4706.0,33.87275809]
[1757730109738,0.00054291,4706.1,4706.0,30.30775809]
[1757730109946,0.00054291,4706.1,4706.0,33.87175809]
[1757730110653,0.00054291,4706.1,4706.0,34.16035809]
[1757730110846,0.29254291,4706.1,4706.0,27.30775809]
[1757730111007,0.29254291,4706.1,4706.0,30.76415809]
[1757730111357,0.29254291,4706.1,4706.0,33.76415809]
[1757730113228,1.34344291,4706.1,4706.0,30.20215809]
[1757730113557,1.80964291,4706.1,4706.0,30.20215809]
[1757730113753,1.80964291,4706.1,4706.0,26.93902342]
[1757730114050,1.80964291,4706.1,4706.0,30.50202342]
[1757730114250,1.80964291,4706.1,4706.0,33.50202342]
[1757730116615,1.80964291,4706.1,4706.0,33.76515809]
[1757730119243,1.80964291,4706.1,4706.0,33.76315809]
[1757730120174,0.29254291,4706.1,4706.0,33.76315809]
[1757730121072,0.00054291,4706.1,4706.0,33.76315809]
[1757730121278,0.29254291,4706.1,4706.0,33.76315809]
[1757730122185,1.80964291,4706.1,4706.0,29.93902342]
[1757730122382,1.9968072,4706.1,4706.0,30.50002342]
[1757730122737,1.9968072,4706.1,4706.0,33.50002342]
[1757730124363,1.9968072,4706.1,4706.0,28.40802342]
[1757730127456,2.9968072,4706.1,4706.0,28.323109]
[1757730135104,1.00054291,4706.1,4706.0,28.88684367]
[1757730135256,0.00054291,4706.1,4706.0,30.45314367]
[1757730135461,1.00054291,4706.1,4706.0,28.88684367]
[1757730136904,0.00054291,4706.1,4706.0,30.45314367]
[1757730137189,0.00054291,4706.1,4706.0,30.67914875]
[1757730137518,0.00054291,4706.1,4706.0,30.45314367]
[1757730138283,0.29384291,4706.1,4706.0,28.58624367]
[1757730139093,0.00054291,4706.1,4706.0,28.58624367]
[1757730140583,0.00054291,4706.1,4706.0,29.35104367]
[1757730140795,0.00054291,4706.1,4706.0,30.45314367]
[1757730141386,0.00054291,4706.1,4706.0,30.45414367]
[1757730142118,0.00054291,4706.1,4706.0,30.68014875]
[1757730144524,0.00054291,4706.1,4706.0,32.58721399]
[1757730145745,0.00054291,4706.1,4706.0,32.46880891]
[1757730148125,0.00054291,4706.1,4706.0,32.69481399]
[1757730148302,0.00054291,4706.1,4706.0,30.78774875]
[1757730149937,0.00054291,4706.1,4706.0,30.56174367]
[1757730151508,0.00054291,4706.1,4706.0,32.46535017]
[1757730151714,0.00054291,4706.1,4706.0,30.59845017]
[1757730152953,0.00054291,4706.1,4706.0,27.33805017]
[1757730153114,0.00054291,4706.1,4706.0,32.46535017]
[1757730155350,0.00054291,4706.1,4706.0,31.36325017]
[1757730155716,0.00054291,4706.1,4706.0,29.45964367]
[1757730155930,0.00054291,4706.1,4706.0,25.89864367]
[1757730156157,0.00054291,4706.1,4706.0,29.45864367]
[1757730156554,0.00054291,4706.1,4706.0,25.43444367]
[1757730156720,0.00054291,4706.1,4706.0,28.99444367]
[1757730156920,0.00054291,4706.1,4706.0,25.43444367]
[1757730157259,0.00054291,4706.1,4706.0,29.45864367]
[1757730158020,0.00054291,4706.1,4706.0,7.69653467]
[1757730158453,0.00054291,4706.1,4706.0,29.45864367]
[1757730159130,0.00054291,4706.1,4706.0,30.56074367]
[1757730160079,0.00054291,4706.1,4706.0,8.79863467]
[1757730160294,0.00054291,4706.1,4706.0,28.69384367]
[1757730162436,0.00054291,4706.1,4706.0,30.59745017]
[1757730163061,0.00054291,4706.1,4706.0,35.68945017]
[1757730163279,0.00054291,4706.1,4706.0,10.36734117]
[1757730163450,0.00054291,4706.1,4706.0,35.68945017]
[1757730163657,0.00054291,4706.1,4706.0,32.12945017]
[1757730163857,0.00054291,4706.1,4706.0,35.68945017]
[1757730164061,0.00054291,4706.1,4706.0,35.99005017]
[1757730164355,0.00054291,4706.1,4706.0,34.55064367]
[1757730165349,0.00054291,4706.1,4706.0,30.52644367]
[1757730165565,0.00054291,4706.1,4706.0,34.08644367]
[1757730165741,0.00054291,4706.1,4706.0,35.62144367]
[1757730166218,0.00054291,4706.1,4706.0,35.84744875]
[1757730168204,0.00054291,4706.1,4706.0,14.08533975]
[1757730168377,0.00054291,4706.1,4706.0,13.85933467]
[1757730168583,0.00054291,4706.1,4706.0,35.62144367]
[1757730170920,0.00054291,4706.1,4706.0,32.06144367]
[1757730171124,0.00054291,4706.1,4706.0,35.62144367]
[1757730171321,0.00054291,4706.1,4706.0,13.85933467]
[1757730171827,0.00054291,4706.1,4706.0,35.62144367]
[1757730172325,0.00054291,4706.1,4706.0,13.85933467]
[1757730172693,0.00054291,4706.1,4706.0,35.62144367]
[1757730173650,0.00054291,4706.1,4706.0,34.08644367]
[1757730173826,0.00054291,4706.1,4706.0,30.52644367]
[1757730174161,0.00054291,4706.1,4706.0,34.08544367]
[1757730176656,0.00054291,4706.1,4706.0,12.32333467]
[1757730177179,0.00054291,4706.1,4706.0,34.08544367]
[1757730178049,0.31024291,4706.1,4706.0,33.78484367]
[1757730178786,0.31024291,4706.1,4706.0,35.41384367]
[1757730179253,0.00054291,4706.1,4706.0,31.85484367]
[1757730179427,0.00054291,4706.1,4706.0,35.71744367]
[1757730179630,0.00054291,4706.1,4706.0,37.22724367]
[1757730181385,0.00054291,4706.1,4706.0,36.18534367]
[1757730183958,0.00054291,4706.1,4706.0,37.22724367]
[1757730184153,0.00054291,4706.1,4706.0,36.18534367]
[1757730185666,1.78574291,4706.1,4706.0,35.150709]
[1757730186805,1.78574291,4706.1,4706.0,13.3886]
[1757730187808,0.31024291,4706.1,4706.0,13.88973302]
[1757730187970,0.31024291,4706.1,4706.0,35.99283801]
[1757730188307,2.78574291,4706.1,4706.0,29.43383801]
[1757730188529,2.78574291,4706.1,4706.0,32.99283801]
[1757730188530,3.0705172,4706.1,4706.0,32.99283801]
[1757730188812,3.0705172,4706.1,4706.0,35.99283801]
[1757730188974,2.78574291,4706.1,4706.0,35.99283801]
[1757730189507,2.78574291,4706.1,4706.0,35.65184202]
[1757730190784,2.78574291,4706.1,4706.0,35.65084202]
[1757730190985,2.78574291,4706.1,4706.0,35.54324202]
[1757730191187,2.78574291,4706.1,4706.0,26.89324202]
[1757730191370,3.0705172,4706.1,4706.0,30.45124202]
[1757730192108,3.0705172,4706.1,4706.0,26.89324202]
[1757730192337,3.0705172,4706.1,4706.0,30.45124202]
[1757730193904,3.0705172,4706.1,4706.0,26.89324202]
[1757730194106,3.0705172,4706.1,4706.0,30.45124202]
[1757730194759,3.0705172,4706.1,4706.0,30.45224202]
[1757730195204,2.34774291,4706.1,4706.0,30.77148467]
[1757730195647,2.34774291,4706.1,4706.0,27.53034904]
[1757730195946,2.77544291,4706.1,4706.0,30.45124202]
[1757730197027,2.77544291,4706.1,4706.0,8.68913302]
[1757730197232,1.00054291,4706.1,4706.0,8.68913302]
[1757730197435,1.29474291,4706.1,4706.0,30.45124202]
[1757730197838,1.29474291,4706.1,4706.0,30.77048467]
[1757730198018,1.29474291,4706.1,4706.0,30.45124202]
[1757730198202,1.29474291,4706.1,4706.0,31.08835987]
[1757730198837,2.81114291,4706.1,4706.0,31.08835987]
[1757730199038,3.10058887,4706.1,4706.0,31.08835987]
[1757730201844,1.58418887,4706.1,4706.0,31.08835987]
[1757730202039,2.38344291,4706.1,4706.0,31.08835987]
[1757730202644,2.81114291,4706.1,4706.0,31.08835987]
[1757730203584,2.38344291,4706.1,4706.0,31.08835987]
[1757730204144,2.81114291,4706.1,4706.0,31.08835987]
[1757730205152,2.81114291,4706.1,4706.0,9.32625087]
[1757730206044,2.81114291,4706.1,4706.0,31.08835987]
[1757730207465,2.81114291,4706.1,4706.0,27.53035987]
[1757730207896,2.81114291,4706.1,4706.0,31.08835987]
[1757730208199,1.29474291,4706.1,4706.0,31.08835987]
[1757730210862,1.29474291,4706.1,4706.0,27.53035987]
[1757730211062,1.29474291,4706.1,4706.0,31.08835987]
[1757730212497,1.29474291,4706.1,4706.0,27.53035987]
[1757730212701,1.29474291,4706.1,4706.0,31.08835987]
[1757730214572,1.29474291,4706.1,4706.0,30.58722685]
[1757730214783,1.29474291,4706.1,4706.0,31.08835987]
[1757730216421,1.00054291,4706.1,4706.0,31.08835987]
[1757730217128,1.00054291,4706.1,4706.0,27.53035987]
[1757730217288,1.00054291,4706.1,4706.0,31.08835987]
[1757730217716,1.00054291,4706.1,4706.0,9.32625087]
[1757730217891,1.00054291,4706.1,4706.0,9.62595087]
[1757730218082,1.00054291,4706.1,4706.0,10.74195087]
[1757730218301,1.00054291,4706.1,4706.0,32.50405987]
[1757730218723,1.00054291,4706.1,4706.0,31.38805987]
[1757730219299,1.00054291,4706.1,4706.0,31.08835987]
[1757730221617,2.38344291,4706.1,4706.0,27.02922685]
[1757730221928,2.81114291,4706.1,4706.0,30.58622685]
[1757730222694,2.38344291,4706.1,4706.0,30.58622685]
[1757730222918,2.38344291,4706.1,4706.0,27.02922685]
[1757730223230,3.0984572,4706.1,4706.0,30.58622685]
[1757730223936,2.6707572,4706.1,4706.0,8.82411785]
[1757730224294,1.5820572,4706.1,4706.0,8.82411785]
[1757730224555,1.00054291,4706.1,4706.0,5.89865741]
[1757730224727,1.00054291,4706.1,4706.0,31.53700906]
[1757730224892,1.00054291,4706.1,4706.0,33.12020906]
[1757730227017,1.00054291,4706.1,4706.0,31.21776641]
[1757730228018,1.00054291,4706.1,4706.0,9.45565741]
[1757730228796,1.00054291,4706.1,4706.0,31.21776641]
[1757730228997,1.00054291,4706.1,4706.0,9.45565741]
[1757730229197,1.00054291,4706.1,4706.0,31.21776641]
[1757730232256,1.00054291,4706.1,4706.0,27.36106641]
[1757730232415,1.00054291,4706.1,4706.0,30.91806641]
[1757730233256,1.31544291,4706.1,4706.0,5.59895741]
[1757730233459,1.6039172,4706.1,4706.0,5.59895741]
[1757730233657,3.1112172,4706.1,4706.0,8.82311785]
[1757730234012,3.1112172,4706.1,4706.0,30.58522685]
[1757730234213,3.1112172,4706.1,4706.0,8.82311785]
[1757730235150,3.1112172,4706.1,4706.0,30.58522685]
[1757730236447,3.1112172,4706.1,4706.0,27.02922685]
[1757730236618,3.1112172,4706.1,4706.0,30.58522685]
[1757730238057,2.6795172,4706.1,4706.0,30.58522685]
[1757730238923,2.6795172,4706.1,4706.0,27.02922685]
[1757730239113,3.1112172,4706.1,4706.0,26.392109]
[1757730239320,3.1112172,4706.1,4706.0,30.58532157]
[1757730239520,1.6039172,4706.1,4706.0,30.58532157]
[1757730239728,1.62523386,4706.1,4706.0,30.58532157]
[1757730241736,1.62523386,4706.1,4706.0,0.63821257]
[1757730241737,3.49283386,4706.1,4706.0,0.63821257]
[1757730241963,3.92453386,4706.1,4706.0,0.001]